Workbook

Sheet Седмична дейност по продажби
B1: СЕДМИЧНА ДЕЙНОСТ ПО ПРОДАЖБИ | I1: ПРОДАВАЧ | J1: Име | L1: КРАЙ НА СЕДМИЦАТА | M1: Дата
I3: МЯСТО | J3: Място | L3: ДНЕШНА ДАТА | M3: Дата
B5: ДНИ | C5: В ТЪРГОВСКИЯ ОФИС | D5: ИЗВЪН ОФИСА | E5: ПОСЕЩЕНИЯ В ОФИСА | F5: ВЪНШНИ ОБАЖДАНИЯ | G5: СТАЦИОНАРНИ ТЕЛЕФОННИ ОБАЖДАНИЯ | H5: НОВ КЛИЕНТ ТЕЛЕФОН | I5: СТАИ ЗА ГОСТИ | J5: ХРАНА И НАПИТКИ | K5: ЗАСЕД. ЗАЛИ, НАЕМ | L5: ДРУГО* | M5: ОБЩО
B6: Понеделник | C6: 14.00 лв. | D6: 23.00 лв. | E6: 4.00 лв. | F6: 45.00 лв. | G6: 22.00 лв. | H6: 2.00 лв. | I6: 100.00 лв. | J6: 0.00 лв. | K6: 0.00 лв. | L6: 0.00 лв. | M6: =SUM(Дейност[[#This Row],[В ТЪРГОВСКИЯ ОФИС]:[ДРУГО*]]) -> 210.00 лв.
B7: Вторник | C7: 23.00 лв. | D7: 76.00 лв. | E7: 10.00 лв. | F7: 50.00 лв. | G7: 54.00 лв. | H7: 45.00 лв. | I7: 80.00 лв. | J7: 0.00 лв. | K7: 0.00 лв. | L7: 0.00 лв. | M7: =SUM(Дейност[[#This Row],[В ТЪРГОВСКИЯ ОФИС]:[ДРУГО*]]) -> 338.00 лв.
B8: Сряда | C8: 4.00 лв. | D8: 130.00 лв. | E8: 11.00 лв. | F8: 33.00 лв. | G8: 67.00 лв. | H8: 65.00 лв. | I8: 400.00 лв. | J8: 0.00 лв. | K8: 0.00 лв. | L8: 0.00 лв. | M8: =SUM(Дейност[[#This Row],[В ТЪРГОВСКИЯ ОФИС]:[ДРУГО*]]) -> 710.00 лв.
B9: Четвъртък | C9: 102.00 лв. | D9: 40.00 лв. | E9: 18.00 лв. | F9: 0.00 лв. | G9: 86.00 лв. | H9: 82.00 лв. | I9: 97.00 лв. | J9: 0.00 лв. | K9: 0.00 лв. | L9: 0.00 лв. | M9: =SUM(Дейност[[#This Row],[В ТЪРГОВСКИЯ ОФИС]:[ДРУГО*]]) -> 425.00 лв.
B10: Петък | C10: 33.00 лв. | D10: 55.00 лв. | E10: 22.00 лв. | F10: 49.00 лв. | G10: 143.00 лв. | H10: 26.00 лв. | I10: 50.00 лв. | J10: 0.00 лв. | K10: 0.00 лв. | L10: 0.00 лв. | M10: =SUM(Дейност[[#This Row],[В ТЪРГОВСКИЯ ОФИС]:[ДРУГО*]]) -> 378.00 лв.
B11: Събота | C11: 0.00 лв. | D11: 0.00 лв. | E11: 0.00 лв. | F11: 0.00 лв. | G11: 0.00 лв. | H11: 0.00 лв. | I11: 0.00 лв. | J11: 0.00 лв. | K11: 0.00 лв. | L11: 0.00 лв. | M11: =SUM(Дейност[[#This Row],[В ТЪРГОВСКИЯ ОФИС]:[ДРУГО*]]) -> 0.00 лв.
B12: Неделя | C12: 0.00 лв. | D12: 0.00 лв. | E12: 0.00 лв. | F12: 0.00 лв. | G12: 0.00 лв. | H12: 0.00 лв. | I12: 0.00 лв. | J12: 0.00 лв. | K12: 0.00 лв. | L12: 0.00 лв. | M12: =SUM(Дейност[[#This Row],[В ТЪРГОВСКИЯ ОФИС]:[ДРУГО*]]) -> 0.00 лв.
B13: Общи суми | C13: =SUBTOTAL(109,Дейност[В ТЪРГОВСКИЯ ОФИС]) -> 176.00 лв. | D13: =SUBTOTAL(109,Дейност[ИЗВЪН ОФИСА]) -> 324.00 лв. | E13: =SUBTOTAL(109,Дейност[ПОСЕЩЕНИЯ В ОФИСА]) -> 65.00 лв. | F13: =SUBTOTAL(109,Дейност[ВЪНШНИ ОБАЖДАНИЯ]) -> 177.00 лв. | G13: =SUBTOTAL(109,Дейност[СТАЦИОНАРНИ ТЕЛЕФОННИ ОБАЖДАНИЯ]) -> 372.00 лв. | H13: =SUBTOTAL(109,Дейност[НОВ КЛИЕНТ ТЕЛЕФОН]) -> 220.00 лв. | I13: =SUBTOTAL(105,Дейност[СТАИ ЗА ГОСТИ]) -> 0.00 лв. | J13: =SUBTOTAL(109,Дейност[ХРАНА И НАПИТКИ]) -> 0.00 лв. | K13: =SUBTOTAL(109,Дейност[ЗАСЕД. ЗАЛИ, НАЕМ]) -> 0.00 лв. | L13: =SUBTOTAL(109,Дейност[ДРУГО*]) -> 0.00 лв. | M13: =SUBTOTAL(109,Дейност[ОБЩО]) -> 2,061.00 лв.
B15: ЦЕЛ | C15: 200.00 лв. | D15: 400.00 лв. | E15: 300.00 лв. | F15: 65.00 лв. | G15: 500.00 лв. | H15: 300.00 лв. | I15: 400.00 лв. | J15: 600.00 лв. | K15: 300.00 лв. | L15: 300.00 лв. | M15: =SUM(C15:L15) -> 3,365.00 лв.
B16: РАЗЛИКА | C16: =SUM(Дейност[[#Totals],[В ТЪРГОВСКИЯ ОФИС]]-C15) -> -24.00 лв. | D16: =SUM(Дейност[[#Totals],[ИЗВЪН ОФИСА]]-D15) -> -76.00 лв. | E16: =SUM(Дейност[[#Totals],[ПОСЕЩЕНИЯ В ОФИСА]]-E15) -> -235.00 лв. | F16: =SUM(Дейност[[#Totals],[ПОСЕЩЕНИЯ В ОФИСА]]-F15) -> 0.00 лв. | G16: =SUM(Дейност[[#Totals],[СТАЦИОНАРНИ ТЕЛЕФОННИ ОБАЖДАНИЯ]]-G15) -> -128.00 лв. | H16: =SUM(Дейност[[#Totals],[НОВ КЛИЕНТ ТЕЛЕФОН]]-H15) -> -80.00 лв. | I16: =SUM(Дейност[[#Totals],[СТАИ ЗА ГОСТИ]]-I15) -> -400.00 лв. | J16: =SUM(Дейност[[#Totals],[ХРАНА И НАПИТКИ]]-J15) -> -600.00 лв. | K16: =SUM(Дейност[[#Totals],[ЗАСЕД. ЗАЛИ, НАЕМ]]-K15) -> -300.00 лв. | L16: =SUM(Дейност[[#Totals],[ДРУГО*]]-L15) -> -300.00 лв. | M16: =SUM(C16:L16) -> -2,143.00 лв.
B18: *ОБЯСНЕНИЕ
B20: Одобрение
